bitfinex/quotes_BTCUSD_20251230
["timestamp","ask_amount","ask_price","bid_price","bid_amount"]
[1767068581927,9.9e-07,87416.0,87413.0,0.06863964]
[1767068582131,9.9e-07,87416.0,87413.0,0.01143994]
[1767068582357,9.9e-07,87416.0,87412.0,0.01144007]
[1767068582557,9.9e-07,87416.0,87413.0,0.01143994]
[1767068583827,9.9e-07,87416.0,87412.0,0.01144007]
[1767068584196,1.09e-06,87420.0,87412.0,0.14619]
[1767068584350,1.09e-06,87420.0,87412.0,0.15763007]
[1767068584751,1.09e-06,87420.0,87413.0,0.01143994]
[1767068585747,1.09e-06,87420.0,87412.0,0.15763007]
[1767068585967,1.09e-06,87420.0,87413.0,0.01143994]
[1767068586184,1.09e-06,87420.0,87412.0,0.15763007]
[1767068586419,1.09e-06,87420.0,87413.0,0.01143994]
[1767068587909,1.09e-06,87420.0,87412.0,0.15763007]
[1767068588150,1.09e-06,87420.0,87413.0,0.01143994]
[1767068588345,1.09e-06,87420.0,87412.0,0.15763007]
[1767068588773,1.09e-06,87420.0,87413.0,0.01143994]
[1767068590395,1.09e-06,87420.0,87414.0,0.01143981]
[1767068590608,1.09e-06,87420.0,87413.0,0.01143994]
[1767068590955,1.09e-06,87420.0,87415.0,0.14619]
[1767068591160,1.09e-06,87420.0,87415.0,0.15762968]
[1767068591359,1.09e-06,87420.0,87415.0,0.14619]
[1767068593603,1.09e-06,87420.0,87410.0,0.01148]
[1767068594187,1.09e-06,87420.0,87411.0,0.01148]
[1767068595290,1.09e-06,87420.0,87412.0,0.01144007]
[1767068595532,1.09e-06,87420.0,87411.0,0.01148]
[1767068595660,1.09e-06,87420.0,87412.0,0.01144007]
[1767068595877,1.09e-06,87420.0,87411.0,0.0229202]
[1767068596528,1.09e-06,87420.0,87412.0,0.01144007]
[1767068596729,1.09e-06,87420.0,87411.0,0.01148]
[1767068599006,1.09e-06,87420.0,87410.0,0.01144033]
[1767068599438,1.09e-06,87420.0,87411.0,0.01148]
[1767068600356,0.01144011,87420.0,87411.0,0.01148]
[1767068600530,0.00055,87411.0,87405.0,0.01148]
[1767068600745,0.01143981,87414.0,87405.0,0.01148]
[1767068601313,0.01143955,87416.0,87405.0,0.01148]
[1767068601520,0.01143942,87417.0,87405.0,0.02292099]
[1767068601739,0.01143916,87419.0,87407.0,0.01144073]
[1767068601947,1.09e-06,87420.0,87409.0,0.01144046]
[1767068602141,1.09e-06,87420.0,87410.0,0.01144033]
[1767068602517,1.09e-06,87420.0,87411.0,0.0114402]
[1767068603076,1.09e-06,87420.0,87407.0,0.01144073]
[1767068603324,0.01144011,87420.0,87408.0,0.0114406]
[1767068603884,0.01144011,87420.0,87409.0,0.01144046]
[1767068604093,1.09e-06,87420.0,87410.0,0.01144033]
[1767068605442,1.09e-06,87420.0,87409.0,0.01144046]
[1767068605611,1.09e-06,87420.0,87410.0,0.01144033]
[1767068606398,1.09e-06,87420.0,87409.0,0.01144046]
[1767068606967,1.09e-06,87420.0,87411.0,0.0114402]
[1767068607141,1.09e-06,87420.0,87410.0,0.01144033]
[1767068607446,1.09e-06,87420.0,87411.0,0.0114402]
[1767068608201,1.09e-06,87420.0,87410.0,0.01144033]
[1767068608615,1.09e-06,87420.0,87410.0,0.207592]
[1767068608824,1.09e-06,87420.0,87412.0,0.01144007]
[1767068609041,1.09e-06,87420.0,87411.0,0.0114402]
[1767068609446,1.09e-06,87420.0,87410.0,0.15039033]
[1767068609742,0.01143876,87422.0,87411.0,0.0114402]
[1767068610079,0.01148,87423.0,87412.0,0.01144007]
[1767068610294,0.01153433,87426.0,87410.0,0.20759189]
[1767068610295,0.01144,87426.0,87413.0,0.13895]
[1767068610480,0.01143785,87429.0,87417.0,0.01143942]
[1767068610628,0.01144,87429.0,87417.0,0.01143942]
[1767068611082,0.02287785,87429.0,87417.0,0.01143942]
[1767068611240,0.01144,87429.0,87418.0,0.01143929]
[1767068611445,0.01144,87429.0,87417.0,0.01143942]
[1767068612056,0.02287785,87429.0,87417.0,0.01143942]
[1767068612294,0.01144,87429.0,87418.0,0.01143929]
[1767068612654,0.01144,87429.0,87417.0,0.01179809]
[1767068612961,0.01144,87429.0,87418.0,0.01143929]
[1767068613153,0.00295543,87429.0,87420.0,0.01143902]
[1767068613382,0.08,87440.0,87430.0,0.01143772]
[1767068613571,0.08,87440.0,87430.0,0.02287772]
[1767068613762,0.01143641,87440.0,87430.0,0.01144]
[1767068614005,0.01143654,87439.0,87430.0,0.01144]
[1767068614208,0.01143667,87438.0,87430.0,0.01144]
[1767068614414,0.0001462,87443.0,87430.0,0.01144]
[1767068614635,0.01143392,87459.0,87443.0,0.01158202]
[1767068614828,0.01143432,87456.0,87444.0,0.01148]
[1767068615028,0.01143405,87458.0,87445.0,0.01148]
[1767068615234,0.0002324,87466.0,87441.0,0.01143628]
[1767068615390,0.00055,87445.0,87442.0,0.01148]
[1767068615573,0.01143523,87449.0,87443.0,0.01148]
[1767068615777,0.01143497,87451.0,87443.0,0.01148]
[1767068615778,0.0114351,87450.0,87443.0,0.01148]
[1767068616030,0.01143523,87449.0,87443.0,0.01183867]
[1767068616233,0.01143536,87448.0,87432.0,0.01143745]
[1767068616392,0.00055,87443.0,87434.0,0.01143719]
[1767068616590,0.00055,87443.0,87432.0,0.00035915]
[1767068616791,0.01143602,87443.0,87433.0,0.01148]
[1767068617214,0.01143615,87442.0,87434.0,0.01148]
[1767068617379,0.01143615,87442.0,87432.0,0.00035915]
[1767068617584,0.01143615,87442.0,87431.0,0.13895]
[1767068617585,0.01143719,87434.0,87431.0,0.13895]
[1767068617784,0.01143732,87433.0,87422.0,0.0002]
[1767068618004,0.01143745,87432.0,87423.0,0.01148]
[1767068618228,0.01143732,87433.0,87423.0,0.01148]
[1767068618702,0.01143745,87432.0,87423.0,0.01148]
[1767068618906,0.01143732,87433.0,87423.0,0.01148]
[1767068619122,0.01143719,87434.0,87423.0,0.01148]
[1767068620110,0.01143732,87433.0,87422.0,0.00055997]
[1767068620310,0.01143732,87433.0,87424.0,0.01148]
[1767068620541,0.01143745,87432.0,87424.0,0.01148]
[1767068621112,0.01143785,87429.0,87425.0,0.01148]
[1767068621318,0.01143759,87431.0,87425.0,0.01148]
[1767068621674,0.01143785,87429.0,87425.0,0.01148]
[1767068621848,0.01143772,87430.0,87425.0,0.01148]
[1767068622241,0.01143654,87439.0,87425.0,0.01148]
[1767068622405,0.0114368,87437.0,87430.0,0.000549]
[1767068622609,0.53016611,87440.0,87428.0,0.01143798]
[1767068622810,0.01143575,87445.0,87433.0,0.01143732]
[1767068623021,0.06861363,87447.0,87434.0,0.01148]
[1767068623221,0.01143471,87453.0,87442.0,0.0002]
[1767068623428,0.01143523,87449.0,87442.0,0.0002]
[1767068623675,0.01143523,87449.0,87441.0,0.01148]
[1767068624151,0.0114351,87450.0,87441.0,0.01148]
[1767068624359,0.01143484,87452.0,87441.0,0.01148]
[1767068624574,0.01143471,87453.0,87441.0,0.01148]
[1767068624998,0.01143484,87452.0,87441.0,0.01148]
[1767068625222,0.01143458,87454.0,87441.0,0.01148]
[1767068625223,0.01143458,87454.0,87442.0,0.01143615]
[1767068625449,0.01143458,87454.0,87441.0,0.01148]
[1767068625852,0.01143471,87453.0,87441.0,0.01148]
[1767068625986,0.01143484,87452.0,87441.0,0.01148]
[1767068626196,0.01143497,87451.0,87441.0,0.01148]
[1767068626406,0.01143589,87444.0,87441.0,0.01148]
[1767068626616,0.5187297,87440.0,87432.0,0.01148]
[1767068626852,0.01143628,87441.0,87427.0,0.01143811]
[1767068626853,0.01143654,87439.0,87427.0,0.01143811]
[1767068626994,0.0114368,87437.0,87424.0,0.0114385]
[1767068627205,0.0114368,87437.0,87425.0,0.01148]
[1767068627414,0.0114368,87437.0,87426.0,0.01148]
[1767068627858,0.0114368,87437.0,87421.0,0.06863328]
[1767068627859,0.01143745,87432.0,87418.0,0.01143929]
[1767068628080,0.01143759,87431.0,87423.0,0.01148]
[1767068628531,0.01143745,87432.0,87423.0,0.01148]
[1767068629565,0.01143759,87431.0,87423.0,0.01148]
[1767068629791,0.01143745,87432.0,87423.0,0.01148]
[1767068630108,0.01143759,87431.0,87423.0,0.01148]
[1767068630324,0.01143732,87433.0,87420.0,0.01143902]
[1767068630525,0.01143732,87433.0,87424.0,0.01148]
[1767068630882,0.01143759,87431.0,87424.0,0.01148]
[1767068631754,0.01143772,87430.0,87424.0,0.01148]
[1767068632093,0.01143759,87431.0,87424.0,0.01148]
[1767068632885,0.01143759,87431.0,87425.0,0.01148]
[1767068633769,0.01143745,87432.0,87425.0,0.01148]
[1767068634178,0.01143732,87433.0,87425.0,0.01148]
[1767068634808,0.01143732,87433.0,87421.0,0.01143889]
[1767068634809,0.01143785,87429.0,87415.0,0.01143968]
[1767068635015,0.53016742,87430.0,87419.0,0.01148]
[1767068635212,0.01143785,87429.0,87419.0,0.01148]
[1767068635542,0.01143798,87428.0,87419.0,0.01148]
[1767068636829,0.01143811,87427.0,87419.0,0.01148]
[1767068637559,0.01143785,87429.0,87419.0,0.01148]
[1767068638355,0.01143798,87428.0,87419.0,0.01148]
[1767068638554,0.01143785,87429.0,87419.0,0.01148]
[1767068638760,0.01143798,87428.0,87419.0,0.01148]
[1767068639619,0.01143811,87427.0,87419.0,0.01148]
[1767068640298,0.01143824,87426.0,87419.0,0.01148]
[1767068641287,0.01143811,87427.0,87419.0,0.01148]
[1767068641715,0.01143889,87421.0,87418.0,0.01148]
[1767068641930,0.01143876,87422.0,87418.0,0.01148]
[1767068642974,0.01143889,87421.0,87418.0,0.01148]
[1767068643179,0.01143889,87421.0,87417.0,0.01224214]
[1767068643415,0.01143902,87420.0,87417.0,0.01224214]
[1767068643695,0.01143902,87420.0,87417.0,2.14e-06]
[1767068644454,0.01143889,87421.0,87417.0,2.14e-06]
[1767068644656,0.0114385,87424.0,87421.0,0.000549]
[1767068645063,0.0114385,87424.0,87417.0,2.14e-06]
[1767068645549,0.01143837,87425.0,87417.0,2.14e-06]
[1767068645937,0.0686281,87428.0,87417.0,2.14e-06]
[1767068646201,0.01143798,87428.0,87417.0,2.14e-06]
[1767068646386,0.01163811,87427.0,87417.0,2.14e-06]
[1767068646753,0.01143837,87425.0,87417.0,2.14e-06]
[1767068646933,0.0114385,87424.0,87417.0,2.14e-06]
[1767068647734,0.01143837,87425.0,87417.0,2.14e-06]
[1767068648144,0.01143824,87426.0,87417.0,2.14e-06]
[1767068649118,0.01163811,87427.0,87417.0,2.14e-06]
[1767068649538,0.01143837,87425.0,87417.0,2.14e-06]
[1767068649687,0.01163811,87427.0,87406.0,0.01144086]
[1767068649688,0.01143902,87420.0,87406.0,0.01144086]
[1767068649887,0.01143902,87420.0,87408.0,0.01148]
[1767068650580,0.01143929,87418.0,87408.0,0.01148]
[1767068651496,0.01143916,87419.0,87408.0,0.01148]
[1767068651789,0.01143929,87418.0,87408.0,0.01148]
[1767068651962,0.01143916,87419.0,87408.0,0.01148]
[1767068652289,0.01143929,87418.0,87408.0,0.01148]
[1767068652497,0.06863339,87421.0,87418.0,0.000549]
[1767068652498,0.01143889,87421.0,87418.0,0.000549]
[1767068652670,0.06863229,87423.0,87409.0,0.01144046]
[1767068653445,0.01143876,87422.0,87410.0,0.01144033]
[1767068653647,0.01143876,87422.0,87409.0,0.01144046]
[1767068655601,0.01143889,87421.0,87409.0,0.01144046]
[1767068655803,0.01143902,87420.0,87408.0,0.0229206]
[1767068656396,0.01143902,87420.0,87408.0,0.0114406]
[1767068656601,0.01143876,87422.0,87409.0,0.02292046]
[1767068656804,0.01143889,87421.0,87409.0,0.02292046]
[1767068658756,0.01143863,87423.0,87410.0,0.01144033]
[1767068658977,0.01143863,87423.0,87411.0,0.0114402]
[1767068659504,0.0114385,87424.0,87412.0,0.01144007]
[1767068660160,0.0107219,87423.0,87412.0,0.01144007]
[1767068660457,0.0114385,87424.0,87413.0,0.01148]
[1767068660617,0.01072196,87423.0,87412.0,0.01144007]
[1767068660976,0.01143889,87421.0,87405.0,0.05720437]
[1767068661122,0.01143902,87420.0,87413.0,0.01148]
[1767068661339,0.01143902,87420.0,87408.0,0.0114406]
[1767068661539,0.01143902,87420.0,87409.0,0.01148]
[1767068661924,0.01143889,87421.0,87409.0,0.02292046]
[1767068662610,0.01143876,87422.0,87410.0,0.01144033]
[1767068662878,0.01143876,87422.0,87409.0,0.01148]
[1767068662879,0.01143889,87421.0,87409.0,0.01148]
[1767068663082,0.01143902,87420.0,87409.0,0.01148]
[1767068663917,0.01143889,87421.0,87409.0,0.02292046]
[1767068664093,0.01143902,87420.0,87409.0,0.01148]
[1767068664291,0.0114385,87424.0,87412.0,0.01144007]
[1767068664645,0.01072809,87423.0,87412.0,0.01144007]
[1767068664844,0.01072809,87422.0,87412.0,0.01144007]
[1767068664984,0.0114385,87424.0,87412.0,0.01144007]
[1767068665184,0.01072809,87423.0,87411.0,0.0114402]
[1767068665389,0.02216685,87422.0,87410.0,0.53030276]
[1767068665597,0.01143876,87422.0,87410.0,0.01144033]
[1767068665794,0.01143863,87423.0,87411.0,0.0114402]
[1767068665996,0.01072859,87422.0,87412.0,0.01144007]
[1767068666198,0.01072905,87421.0,87412.0,0.01144007]
[1767068666421,0.05718995,87428.0,87421.0,0.000549]
[1767068666621,0.0107288,87426.0,87421.0,0.000549]
[1767068666939,0.0107288,87425.0,87414.0,0.01143981]
[1767068667113,0.0107288,87424.0,87414.0,0.01143981]
[1767068667315,0.0107288,87423.0,87414.0,0.01143981]
[1767068667499,0.0002,87427.0,87414.0,0.01143981]
[1767068667713,0.01072936,87426.0,87414.0,0.01143981]
[1767068667921,0.01072936,87425.0,87414.0,0.01143981]
[1767068668124,0.01072936,87424.0,87415.0,0.01143968]
[1767068668321,0.01072936,87423.0,87414.0,0.01143981]
[1767068668548,0.01143824,87426.0,87414.0,0.01143981]
[1767068668711,0.01073003,87425.0,87414.0,0.01143981]
[1767068668910,0.01073003,87424.0,87414.0,0.01143981]
[1767068669267,0.01073003,87423.0,87415.0,0.01143968]
[1767068669471,0.01143824,87426.0,87414.0,0.01143981]
[1767068669671,0.01073079,87425.0,87414.0,0.01143981]
[1767068669874,0.01073079,87424.0,87415.0,0.01143968]
[1767068670077,0.01073079,87423.0,87414.0,0.01143981]
[1767068670232,0.01143837,87425.0,87413.0,0.01143994]
[1767068670572,0.01143863,87423.0,87413.0,0.01148]
[1767068670799,0.01073105,87422.0,87413.0,0.01148]
[1767068671071,0.01163811,87427.0,87414.0,0.01143981]
[1767068671299,0.01143824,87426.0,87415.0,0.01143968]
[1767068671532,0.01143824,87426.0,87413.0,0.02291994]
[1767068671717,0.01163811,87427.0,87415.0,0.01143968]
[1767068671924,0.0002,87427.0,87415.0,0.01143968]
[1767068672305,0.0002,87427.0,87418.0,0.01143929]
[1767068672509,0.0002,87427.0,87419.0,0.01143916]
[1767068672876,0.0002,87427.0,87418.0,0.01143929]
[1767068673102,0.0002,87427.0,87419.0,0.01143916]
[1767068673318,0.0002,87427.0,87418.0,0.01143929]
[1767068673699,0.0002,87427.0,87419.0,0.01143916]
[1767068674460,0.0002,87427.0,87420.0,0.01143902]
[1767068674611,0.0002,87427.0,87416.0,0.01143955]
[1767068674815,0.0002,87427.0,87418.0,0.01143929]
[1767068675039,0.0002,87427.0,87419.0,0.01143916]
[1767068675243,0.0002,87427.0,87420.0,0.01143902]
[1767068675415,0.0002,87427.0,87419.0,0.01143916]
[1767068676027,0.0002,87427.0,87414.0,0.06863867]
[1767068676229,0.0002,87427.0,87416.0,0.01143955]
[1767068676431,0.0002,87427.0,87417.0,0.01143942]
[1767068677016,0.0002,87427.0,87418.0,0.01143929]
[1767068677223,0.01144,87432.0,87419.0,0.01143916]
[1767068677418,0.01144,87432.0,87420.0,0.01143902]
[1767068677628,0.01144,87432.0,87421.0,0.01143889]
[1767068677870,0.01144,87432.0,87422.0,0.01143876]
[1767068678073,0.02287719,87434.0,87422.0,0.01143876]
[1767068678273,0.01144,87434.0,87422.0,0.01143876]
[1767068678483,0.01143654,87439.0,87423.0,0.01143863]
[1767068678484,0.01148,87439.0,87423.0,0.01143863]
[1767068678716,0.01143562,87446.0,87432.0,0.01143745]
[1767068678942,0.01143549,87447.0,87434.0,0.01143719]
[1767068679353,0.01143575,87445.0,87433.0,0.02291732]
[1767068679938,0.01143562,87446.0,87434.0,0.01143719]
[1767068680144,0.01143589,87444.0,87433.0,0.01148]
[1767068680383,0.01143615,87442.0,87433.0,0.01148]
[1767068680574,0.01143615,87442.0,87433.0,0.010381]
[1767068680775,0.01143628,87441.0,87433.0,0.010381]
[1767068680935,0.01143641,87440.0,87433.0,0.010381]
[1767068681527,0.01143615,87442.0,87433.0,0.010381]
[1767068681769,0.01143602,87443.0,87433.0,0.010381]
[1767068681976,0.01143589,87444.0,87433.0,0.010381]
[1767068682213,0.01143602,87443.0,87433.0,0.010381]
[1767068682920,0.01071647,87442.0,87433.0,0.010381]
[1767068683118,0.01071647,87441.0,87433.0,0.010381]
[1767068683320,0.01071647,87440.0,87433.0,0.010381]
[1767068683522,0.01143602,87443.0,87433.0,0.00180068]
[1767068683741,0.02215088,87442.0,87433.0,0.00180068]
[1767068683892,0.02215101,87441.0,87433.0,0.00180068]
[1767068684124,0.01071473,87440.0,87433.0,0.00180068]
[1767068684328,0.01143628,87441.0,87433.0,0.00180068]
[1767068684500,0.0107133,87440.0,87433.0,0.00180068]
[1767068684704,0.01143628,87441.0,87433.0,0.00180068]
[1767068684903,0.0107133,87440.0,87433.0,0.00180068]
[1767068685219,0.01143628,87441.0,87433.0,0.00180068]
[1767068685625,0.01143641,87440.0,87433.0,0.00180068]
[1767068685785,0.01143654,87439.0,87433.0,0.00180068]
[1767068685989,0.01143667,87438.0,87433.0,0.00180068]
[1767068687135,0.01143654,87439.0,87433.0,0.00180068]
[1767068688397,0.01143641,87440.0,87433.0,0.00180068]
[1767068690695,0.01143654,87439.0,87433.0,0.00180068]
[1767068690895,0.01143654,87439.0,87425.0,0.06862964]
[1767068690896,0.0114368,87437.0,87424.0,0.0114385]
[1767068691151,0.0114368,87437.0,87425.0,0.02287837]
[1767068691284,0.0114368,87437.0,87425.0,0.01144]
[1767068691285,0.01143693,87436.0,87425.0,0.01144]
[1767068692116,0.0114368,87437.0,87425.0,0.02287837]
[1767068692314,0.0114368,87437.0,87425.0,0.01143837]
[1767068692526,0.01143667,87438.0,87426.0,0.02287824]
[1767068692706,0.01113348,87439.0,87427.0,0.01143811]
[1767068693113,0.51886243,87440.0,87428.0,0.01143798]
[1767068693279,0.51886243,87440.0,87429.0,0.01143785]
[1767068693488,0.51886243,87440.0,87428.0,0.01143798]
[1767068694324,0.51886243,87440.0,87429.0,0.01143785]
[1767068694674,0.53029884,87440.0,87428.0,0.01143798]
[1767068694806,0.01143654,87439.0,87428.0,0.01143798]
[1767068695250,0.53029884,87440.0,87428.0,0.01143798]
[1767068696814,0.53029884,87440.0,87427.0,0.01143811]
[1767068697022,0.01143654,87439.0,87426.0,0.00377504]
[1767068697261,0.01143654,87439.0,87426.0,0.01521328]
[1767068697638,0.53029884,87440.0,87428.0,0.01143798]
[1767068698951,0.01143654,87439.0,87427.0,0.01143811]
[1767068699545,0.01143654,87439.0,87426.0,0.00377504]
[1767068699546,0.01143667,87438.0,87426.0,0.00377504]
[1767068699965,0.01143654,87439.0,87427.0,0.01143811]
[1767068700163,0.53029884,87440.0,87428.0,0.01143798]
[1767068700361,0.02215051,87439.0,87427.0,0.01143811]
[1767068700566,0.01143654,87439.0,87427.0,0.01143811]
[1767068700765,0.01143667,87438.0,87426.0,0.01521328]
[1767068700940,0.01143654,87439.0,87426.0,0.01521328]
[1767068701126,0.01143654,87439.0,87427.0,0.01144]
[1767068701532,0.53029884,87440.0,87427.0,0.02287811]
[1767068701787,0.01071509,87439.0,87427.0,0.02287811]
[1767068701937,0.01143667,87438.0,87427.0,0.01144]
[1767068702142,0.0114368,87437.0,87427.0,0.01144]
[1767068702921,0.01143732,87433.0,87420.0,0.0002]
[1767068703037,0.01143745,87432.0,87421.0,0.01144]
[1767068703493,0.01143706,87435.0,87421.0,0.02287889]
[1767068703812,0.01143719,87434.0,87422.0,0.01143876]
[1767068704014,0.01143732,87433.0,87421.0,0.02287889]
[1767068704220,0.01143719,87434.0,87422.0,0.01143876]
[1767068704418,0.0114368,87437.0,87422.0,0.01143876]
[1767068704647,0.01143732,87433.0,87421.0,0.02287889]
[1767068704767,0.01143745,87432.0,87421.0,0.01144]
[1767068704969,0.01143719,87434.0,87422.0,0.01143876]
[1767068705335,0.01143732,87433.0,87422.0,0.01143876]
[1767068705468,0.01143732,87433.0,87421.0,0.02287889]
[1767068705667,0.01143732,87433.0,87421.0,0.01143889]
[1767068705883,0.01143745,87432.0,87422.0,0.01144]
[1767068706122,0.01143719,87434.0,87422.0,0.02287876]
[1767068706332,0.01143693,87436.0,87423.0,0.01143863]
[1767068706558,0.01072306,87435.0,87424.0,0.0114385]
[1767068706794,0.01072306,87434.0,87422.0,0.02287876]
[1767068706987,0.01143706,87435.0,87422.0,0.02287876]
[1767068707314,0.01072306,87434.0,87423.0,0.01143863]
[1767068707473,0.01072306,87433.0,87423.0,0.01143863]
[1767068707680,0.01143706,87435.0,87423.0,0.01143863]
[1767068707874,0.02216301,87434.0,87422.0,0.02287876]
[1767068708089,0.02216314,87433.0,87422.0,0.01144]
[1767068708281,0.01143759,87431.0,87422.0,0.01144]
[1767068708610,0.01143719,87434.0,87422.0,0.01144]
[1767068708800,0.01072938,87433.0,87422.0,0.01144]
[1767068709006,0.01072938,87432.0,87425.0,0.01143837]
[1767068709161,0.0114368,87437.0,87425.0,0.01143837]
[1767068709374,0.01072908,87436.0,87425.0,0.01143837]
[1767068709574,0.01072908,87435.0,87424.0,0.0114385]
[1767068709777,0.01072908,87434.0,87424.0,0.0114385]
[1767068709992,0.01072908,87433.0,87423.0,0.01143863]
[1767068710192,0.01143693,87436.0,87424.0,0.0114385]
[1767068710397,0.01072884,87435.0,87424.0,0.0114385]
[1767068710636,0.01072884,87434.0,87424.0,0.0114385]
[1767068710792,0.01072884,87433.0,87422.0,0.02287876]
[1767068711004,0.01072886,87432.0,87422.0,0.01144]
[1767068711203,0.01143719,87434.0,87422.0,0.01144]
[1767068711412,0.01072858,87433.0,87422.0,0.02287876]
[1767068711642,0.01072858,87432.0,87422.0,0.02287876]
[1767068711858,0.01143719,87434.0,87422.0,0.02287876]
[1767068712127,0.01072858,87433.0,87422.0,0.02287876]
[1767068712332,0.01072858,87432.0,87423.0,0.01143863]
[1767068712671,0.0114368,87437.0,87432.0,0.001099]
[1767068712878,0.01072845,87436.0,87426.0,0.01143824]
[1767068713205,0.01072845,87435.0,87426.0,0.01143824]
[1767068713424,0.01072845,87434.0,87426.0,0.01143824]
[1767068713625,0.01072845,87433.0,87426.0,0.01143824]
[1767068713827,0.0114368,87437.0,87425.0,0.01143837]
[1767068713941,0.0107283,87436.0,87425.0,0.01143837]
[1767068714145,0.0107283,87435.0,87426.0,0.01143824]
[1767068714437,0.0107283,87434.0,87426.0,0.01143824]
[1767068714633,0.0107283,87433.0,87426.0,0.01143824]
[1767068714837,0.01143667,87438.0,87427.0,0.01143811]
[1767068715010,0.01072835,87437.0,87427.0,0.01143811]
[1767068715213,0.01072835,87436.0,87428.0,0.01143798]
[1767068715413,0.01072835,87435.0,87428.0,0.01143798]
[1767068715592,0.01143641,87440.0,87428.0,0.01143798]
[1767068715776,0.01143654,87439.0,87427.0,0.01143811]
[1767068715980,0.01143667,87438.0,87425.0,0.01143837]
[1767068716394,0.0114368,87437.0,87424.0,0.0114385]
[1767068716810,0.01143667,87438.0,87425.0,0.01143837]
[1767068717687,0.01143654,87439.0,87427.0,0.01143811]
[1767068717845,0.01143615,87442.0,87439.0,0.00055]
[1767068718046,0.01143589,87444.0,87431.0,0.01143759]
[1767068718266,0.01143615,87442.0,87429.0,0.02287785]
[1767068718493,0.01143628,87441.0,87429.0,0.02287785]
[1767068718693,0.01143615,87442.0,87430.0,0.01143772]
[1767068718900,0.01143628,87441.0,87429.0,0.02287785]
[1767068719247,0.01143602,87443.0,87430.0,0.01143772]
[1767068719493,0.02287575,87445.0,87432.0,0.01143745]
[1767068719691,0.01143589,87444.0,87432.0,0.01143745]
[1767068719892,0.01143589,87444.0,87429.0,0.02287785]
[1767068720071,0.01143615,87442.0,87429.0,0.02287785]
[1767068720268,0.01144,87445.0,87430.0,0.01143772]
[1767068720657,0.01144,87445.0,87435.0,0.01143706]
[1767068721008,0.01144,87445.0,87434.0,0.01143719]
[1767068721214,0.01144,87445.0,87432.0,0.01143745]
[1767068721417,0.01144,87445.0,87434.0,0.01143719]
[1767068721595,0.01144,87445.0,87433.0,0.01143732]
[1767068721797,0.01144,87445.0,87434.0,0.01143719]
[1767068722257,0.02287575,87445.0,87431.0,0.01143759]
[1767068722474,0.02287575,87445.0,87433.0,0.01143732]
[1767068722630,0.01144,87445.0,87434.0,0.01143719]
[1767068722838,0.01144,87445.0,87435.0,0.01143706]
[1767068723215,0.01144,87445.0,87434.0,0.01143719]
[1767068723216,0.01143589,87444.0,87431.0,0.01143759]
[1767068723422,0.02287575,87445.0,87433.0,0.01143732]
[1767068723824,0.01143589,87444.0,87426.0,0.20459112]
[1767068724174,0.01143615,87442.0,87430.0,0.01143772]
[1767068724379,0.01143615,87442.0,87429.0,0.02287785]
[1767068724638,0.01143615,87442.0,87430.0,0.01143772]
[1767068725175,0.01143615,87442.0,87431.0,0.01143759]
[1767068725417,0.01143615,87442.0,87430.0,0.01143772]
[1767068725933,0.05717954,87444.0,87442.0,0.00055]
[1767068726298,0.05717954,87444.0,87430.0,0.01143772]
[1767068726502,0.01143602,87443.0,87430.0,0.01143772]
[1767068726698,0.01143602,87443.0,87431.0,0.01143759]
[1767068727102,0.05717954,87444.0,87431.0,0.01143759]
[1767068727444,0.01143602,87443.0,87431.0,0.01143759]
[1767068727580,0.01072714,87442.0,87431.0,0.01143759]
[1767068727786,0.02216342,87441.0,87429.0,0.02287785]
[1767068728012,0.01072714,87440.0,87429.0,0.02287785]
[1767068728258,0.01072714,87439.0,87429.0,0.02287785]
[1767068728397,0.01072714,87438.0,87429.0,0.01144]
[1767068728597,0.01143628,87441.0,87429.0,0.02287785]
[1767068728806,0.01072694,87440.0,87429.0,0.02287785]
[1767068729000,0.01072694,87439.0,87429.0,0.02287785]
[1767068729213,0.01072694,87438.0,87429.0,0.02287785]
[1767068729430,0.01143628,87441.0,87429.0,0.02287785]
[1767068729612,0.01072674,87440.0,87429.0,0.02287785]
[1767068729812,0.01072674,87439.0,87429.0,0.0227928]
[1767068730017,0.01072674,87438.0,87429.0,0.0227928]
[1767068730217,0.01143628,87441.0,87429.0,0.0227928]
[1767068730418,0.01072666,87440.0,87429.0,0.0227928]
[1767068730617,0.01072666,87439.0,87430.0,0.01143772]
[1767068730864,0.01072666,87438.0,87430.0,0.01143772]
[1767068731039,0.01143615,87442.0,87430.0,0.01143772]
[1767068731220,0.01072656,87441.0,87430.0,0.01143772]
[1767068731401,0.01143615,87442.0,87430.0,0.01143772]
[1767068731402,0.01072656,87440.0,87430.0,0.01143772]
[1767068731607,0.01072656,87439.0,87430.0,0.01143772]
[1767068731851,0.01072656,87438.0,87430.0,0.01143772]
[1767068732057,0.01143615,87442.0,87430.0,0.01143772]
[1767068732227,0.01072648,87441.0,87430.0,0.01143772]
[1767068732406,0.01072648,87440.0,87430.0,0.01143772]
[1767068732613,0.01072648,87439.0,87430.0,0.01143772]
[1767068732882,0.01072648,87438.0,87431.0,0.01143759]
[1767068733072,0.01143602,87443.0,87431.0,0.01143759]
[1767068733245,0.01072631,87442.0,87431.0,0.01143759]
[1767068733443,0.01072631,87441.0,87431.0,0.01143759]
[1767068733715,0.01072631,87440.0,87431.0,0.01143759]
[1767068733904,0.01072631,87439.0,87431.0,0.01143759]
[1767068734126,0.01072631,87438.0,87430.0,0.01143772]
[1767068734332,0.01143602,87443.0,87431.0,0.01143759]
[1767068734546,0.01072629,87442.0,87431.0,0.01143759]
[1767068734748,0.01072629,87441.0,87431.0,0.01143759]
[1767068734953,0.01072629,87440.0,87432.0,0.01143745]
[1767068735146,0.02287575,87445.0,87433.0,0.01143732]
[1767068735934,0.01144,87445.0,87433.0,0.01143732]
[1767068736281,0.01144,87445.0,87434.0,0.01143719]
[1767068736474,0.01144,87445.0,87435.0,0.01143706]
[1767068737040,0.01143536,87448.0,87435.0,0.01143706]
[1767068737241,8.5e-07,87448.0,87435.0,0.06862217]
[1767068737447,8.5e-07,87448.0,87437.0,0.0114368]
[1767068737878,8.5e-07,87448.0,87438.0,0.01143667]
[1767068738832,0.7473058,87470.0,87444.0,0.01143589]
[1767068739122,0.08004592,87456.0,87442.0,0.01143615]
[1767068739266,0.08004592,87456.0,87441.0,0.01143628]
[1767068739502,0.01143458,87454.0,87441.0,0.01143628]
[1767068739789,0.01143458,87454.0,87442.0,0.01143615]
[1767068740206,0.01143445,87455.0,87441.0,0.01143628]
[1767068740418,0.01143458,87454.0,87441.0,0.01143628]
[1767068740625,0.01143445,87455.0,87442.0,0.01143615]
[1767068740841,0.01143458,87454.0,87442.0,0.01143615]
[1767068741049,0.01144,87456.0,87446.0,0.01143562]
[1767068741451,0.0001459,87457.0,87446.0,0.01143562]
[1767068741655,0.01144,87456.0,87448.0,0.01143536]
[1767068741868,0.01144,87456.0,87449.0,0.01143523]
[1767068742078,0.01144,87456.0,87447.0,0.01143549]
[1767068742276,0.01144,87456.0,87449.0,4.518e-05]
[1767068742490,0.01144,87456.0,87450.0,0.0114351]